Cogmind - Beta 13 *** ADVENTURER MODE // 2024.03.20 @ 09:54:57 Player: TRUE.MIND Result: Self-destructed Performance ------------- Evolutions (2) 1000 Regions Visited (3) 600 Robots Destroyed (21) 105 Value Destroyed (559) 559 Prototype IDs (0) 0 Alien Tech Used (0) 0 Bonus (0) 0 TOTAL SCORE: 2264 Bonus ------- None Cogmind --------- Core Integrity 285/550 Matter 258/300 Energy 6/100 System Corruption 0% Temperature Cool (0) Movement Core (50) Location -8/Materials Parts ------- > --- POWER (1) -------- (None) > --- PROPULSION (3) --- (None) > --- UTILITY (5) ------ Particle Charger > --- WEAPON (2) ------- (None) > --- INVENTORY (5) ---- (None) Peak State ------------ > --- POWER ------------ Light Nuclear Core > --- PROPULSION ------- Aluminum Leg Aluminum Leg Aluminum Leg > --- UTILITY ---------- (None) > --- WEAPON ----------- Heavy Laser Heavy Particle Cannon > --- INVENTORY -------- (None) [Rating: 13] Favorites ----------- Power Improved Ion Engine Engine Improved Ion Engine Power Core Light Nuclear Core Propulsion Light Treads Treads Light Treads Leg Aluminum Leg Utility Medium Storage Unit Device Improved Heat Sink Storage Medium Storage Unit Protection Insulated Plating Weapon Beam Cannon Energy Gun Medium Laser Energy Cannon Beam Cannon Launcher Grenade Launcher Build | -11 -10 -9 -8 ------- Run | Yrd Mat Mat Mat Slots Evolved 4 | . . 2 2 Power . | . . . . Propulsion 1 | . . . 1 Utility 3 | . . 2 1 Weapon . | . . . . Parts Attached 29 | 5 7 7 10 Power 6 | 1 2 1 2 Engine 5 | 1 2 1 1 Core 1 | . . . 1 Reactor . | . . . . Propulsion 7 | 2 2 . 3 Treads 2 | 2 . . . Leg 5 | . 2 . 3 Wheel . | . . . . Hover . | . . . . Flight . | . . . . Utility 9 | 1 3 3 2 Device 4 | . 1 2 1 Storage 3 | 1 1 . 1 Processor . | . . . . Hackware . | . . . . Protection 2 | . 1 1 . Artifact . | . . . . Weapon 7 | 1 . 3 3 Energy Gun 2 | 1 . . 1 Energy Cannon 3 | . . 2 1 Ballistic Gun . | . . . . Ballistic Cannon . | . . . . Launcher 2 | . . 1 1 Special Weapon . | . . . . Impact Weapon . | . . . . Slashing Weapon . | . . . . Piercing Weapon . | . . . . Special Melee Weapon . | . . . . Unidentified Prototypes . | . . . . Parts Lost 14 | . . 7 7 Power 2 | . . 1 1 Propulsion 3 | . . . 3 Utility 4 | . . 4 . Weapon 5 | . . 2 3 Highest Loss Streak 7 | . . 7 5 To Critical Strikes . | . . . . Average Slot Usage (%) 64 | . 78 67 27 Engine 9 | . 13 9 5 Treads 5 | . 23 . . Leg 1 | . 3 . 6 Device 11 | . 1 17 1 Storage 10 | . 14 11 . Protection 8 | . 7 10 . Energy Gun 3 | . 13 . 1 Energy Cannon 12 | . . 19 7 Naked Turns . | . . . . Heaviest Build 28 | 10 18 28 12 Greatest Support 40 | 40 40 3 30 Greatest Overweight (x) 9 | . 3 9 3 Average Overweight (x) 3 | . . 7 1 Largest Inventory Capacity 25 | 8 10 10 25 Average Capacity 9 | 6 9 10 5 Most Carried 5 | 1 5 3 1 Average Carried 1 | . 1 1 . Final Capacity 10 | 8 10 5 5 Final Carried 2 | . 1 2 . Class Distribution -------------------- 93% | Mutant 6% | Scavenger-Mutant Dominant Class ---------------- Mutant | -10/Materials Mutant | -9/Materials Mutant | -8/Materials Resources | -11 -10 -9 -8 ----------- Run | Yrd Mat Mat Mat Matter Collected 485 | 243 67 80 95 Remotely . | . . . . Salvage Created 698 | . 247 260 191 Parts 39 | . 13 15 11 Haulers Intercepted 1 | . 1 . . Recyclers Shooed . | . . . . Parts Field Recycled . | . . . . Retrieved Matter . | . . . . Parts Self-Destructed . | . . . . Prevented . | . . . . Kills | -11 -10 -9 -8 ------- Run | Yrd Mat Mat Mat Combat Hostiles Destroyed 18 | . 6 8 4 Guns 6 | . 6 . . Cannons 12 | . . 8 4 Classes Destroyed 5 | . 4 1 . Hauler 1 | . 1 . . Watcher 2 | . 1 1 . Swarmer 7 | . 3 4 . Grunt 10 | . 3 3 4 Duelist 1 | . . 1 . Best Kill Streak 4 | . 3 4 3 Combat Bots Only 4 | . 3 4 3 Max Kills in Single Turn 1 | . 1 1 1 Gunslinging . | . . . . Exploded . | . . . . Melee . | . . . . Uniques/NPCs Destroyed . | . . . . Combat | -11 -10 -9 -8 -------- Run | Yrd Mat Mat Mat Hostile Shots Fired 271 | . 51 137 83 Missed 68 | . 10 37 21 Damage Taken 2144 | . 321 1031 792 Core 677 | . 68 344 265 Absorbed by Shields . | . . . . Ignored by Resistances 616 | . 98 295 223 Core Remaining (%) 62 | 100 72 14 . Volleys Fired 78 | . 38 20 20 Largest 2 | . 1 2 2 Hottest 144 | . 50 120 144 Shots Fired 97 | . 38 34 25 Gun 43 | . 38 . 5 Cannon 54 | . . 34 20 Launcher . | . . . . Special . | . . . . Kinetic . | . . . . Thermal 97 | . 38 34 25 Explosive . | . . . . Electromagnetic . | . . . . Robot Hit Streak 15 | . 15 9 8 Robot Miss Streak 2 | . 2 1 2 Penetration Max . | . . . . Secondary Targets . | . . . . Shots Hit Robots 75 | . 33 24 18 Core Hits 35 | . 13 12 10 Critical Kills . | . . . . Critical Parts Destroyed . | . . . . Critical Strikes 3 | . 3 . . Burn 3 | . 3 . . Melee Attacks . | . . . . Impact . | . . . . Slashing . | . . . . Piercing . | . . . . Sneak Attacks . | . . . . Combat Hostiles . | . . . . Follow-up Attacks . | . . . . Damage Inflicted 1361 | . 416 438 507 Guns 473 | . 416 . 57 Cannons 887 | . . 437 450 Explosions . | . . . . Melee . | . . . . Ramming 1 | . . 1 . Kinetic . | . . . . Thermal 1360 | . 416 437 507 Explosive . | . . . . Electromagnetic . | . . . . Impact . | . . . . Slashing . | . . . . Piercing . | . . . . Highest Corruption . | . . . . Average Corruption . | . . . . Corruption Purged . | . . . . Corruption Blocked . | . . . . Overload Shots . | . . . . Overflow Damage 4 | . . . 4 Projectiles 4 | . . . 4 Explosions . | . . . . Melee . | . . . . Knockbacks . | . . . . Impact . | . . . . Kinetic . | . . . . Secondary . | . . . . Self-Inflicted Damage . | . . . . Shots . | . . . . Rammed 1 | . . 1 . Targets Rammed 1 | . . 1 . Kicked . | . . . . Crushed . | . . . . Highest Temperature 717 | . 289 120 717 Average Temperature 154 | . 107 34 289 Received Heat Transfer 1350 | . 153 621 576 Effects 16 | . 1 . 15 Shutdowns 1 | . . . 1 Energy Bleed 4 | . 1 . 3 Matter Decay 2 | . . . 2 Short Circuit 4 | . . . 4 Damage (major) 5 | . . . 5 Siege Activations . | . . . . Robots Corrupted . | . . . . Combat Hostiles . | . . . . Parts Fried . | . . . . Impact Corruptions . | . . . . Robots Melted . | . . . . Combat Hostiles . | . . . . Parts Melted 6 | . 6 . . Heat Transferred 3145 | . 1443 925 777 Parts Sabotaged . | . . . . Parts Stolen . | . . . . Parts Stripped . | . . . . Power Chain Reactions . | . . . . Alert | -11 -10 -9 -8 ------- Run | Yrd Mat Mat Mat Peak Influence 215 | . 215 154 62 Initial 5 | . . 5 . Average 43 | . 74 38 26 Maximum Alert Level 1 | . 1 . . Low Security (%) 95 | 100 81 100 100 Level 1 4 | . 18 . . Level 2 . | . . . . Level 3 . | . . . . Level 4 . | . . . . Level 5 . | . . . . High Security . | . . . . Max Security . | . . . . Squads Dispatched 1 | . . 1 . Investigation . | . . . . Extermination . | . . . . Reinforcement 1 | . . 1 . Assault . | . . . . Garrison . | . . . . Intercept . | . . . . Searches Triggered . | . . . . Construction Impeded . | . . . . Haulers Reinforced . | . . . . Active Scanning Responses . | . . . . Cargo Convoy Interrupts . | . . . . Stealth | -11 -10 -9 -8 --------- Run | Yrd Mat Mat Mat Distress Signals 2 | . . . 2 Communications Jammed . | . . . . Distress Signals . | . . . . Times Spotted 34 | . 9 16 9 Peak Tracking Total 7 | . 3 5 7 Tactical Retreats . | . . . . Traps | -11 -10 -9 -8 ------- Run | Yrd Mat Mat Mat Traps Triggered 2 | . 2 . . Indirectly . | . . . . Trap Hack Attempts . | . . . . Triggered . | . . . . Disarmed . | . . . . Reprogrammed . | . . . . Reused . | . . . . Traps Extracted . | . . . . Installed . | . . . . Triggered . | . . . . Machines | -11 -10 -9 -8 ---------- Run | Yrd Mat Mat Mat Machines Disabled . | . . . . Max in Single Turn . | . . . . Machines Repaired . | . . . . Machines Dismantled . | . . . . Machines Sabotaged . | . . . . Overloaded Fab Kills . | . . . . Hacking | -11 -10 -9 -8 --------- Run | Yrd Mat Mat Mat Machines Accessed 4 | . 3 1 . Terminals 3 | . 2 1 . Fabricators . | . . . . Repair Stations . | . . . . Recycling Units 1 | . 1 . . Scanalyzers . | . . . . Garrison Access . | . . . . Total Hacks 11 | . 9 2 . Successful 5 | . 4 1 . Failed 6 | . 5 1 . Catastrophic 1 | . 1 . . Database Lockouts . | . . . . Manual . | . . . . Terminals 8 | . 6 2 . Fabricators . | . . . . Repair Stations . | . . . . Recycling Units 3 | . 3 . . Scanalyzers . | . . . . Garrison Access . | . . . . Terminal Hacks 3 | . 2 1 . Locate Traps 1 | . . 1 . Hauler Manifests 1 | . 1 . . Zone Layout 1 | . 1 . . Fabricator Hacks . | . . . . Repair Station Hacks . | . . . . Recycling Unit Hacks 2 | . 2 . . Report Inventory 1 | . 1 . . Retrieve Components 1 | . 1 . . Scanalyzer . | . . . . Garrison Access Hacks . | . . . . Unauthorized Hacks . | . . . . Terminals . | . . . . Fabricators . | . . . . Repair Stations . | . . . . Recycling Units . | . . . . Scanalyzers . | . . . . Garrison Access . | . . . . Data Cores Recovered . | . . . . Used . | . . . . Hacking Detections 3 | . 3 . . Full Trace Events 1 | . 1 . . Feedback Events . | . . . . Feedback Blocked . | . . . . Robot Schematics Acquired . | . . . . Robots Built . | . . . . Authchips . | . . . . Time . | . . . . Total Robot Build Rating . | . . . . Part Schematics Acquired . | . . . . Parts Built . | . . . . Authchips . | . . . . Time . | . . . . Total Part Build Rating . | . . . . Parts Repaired . | . . . . Time . | . . . . Parts Recycled . | . . . . Recycled Matter . | . . . . Retrieved Matter . | . . . . Retrieved Components . | . . . . Parts Scanalyzed . | . . . . Part Schematics Acquired . | . . . . Parts Damaged . | . . . . Bothacking | -11 -10 -9 -8 ------------ Run | Yrd Mat Mat Mat Used RIF Installer . | . . . . Robots Hacked . | . . . . Non-combat . | . . . . Combat . | . . . . Robot Hacks Applied . | . . . . Relay Couplers Released . | . . . . Fabnet Peak Effective % . | . . . . Robots Rewired . | . . . . Allies Hacked . | . . . . Hacks Repelled . | . . . . Allies | -11 -10 -9 -8 -------- Run | Yrd Mat Mat Mat Total Allies . | . . . . Largest Group . | . . . . Highest-Rated Group . | . . . . Highest-Rated Ally . | . . . . Total Orders . | . . . . Ally Attacks . | . . . . Total Damage . | . . . . Kills . | . . . . Allies Corrupted . | . . . . Allies Melted . | . . . . Intel | -11 -10 -9 -8 ------- Run | Yrd Mat Mat Mat Robot Analysis Total . | . . . . Derelict Logs Recovered . | . . . . Drone Launches . | . . . . Drone Recoveries . | . . . . Exploration | -11 -10 -9 -8 ------------- Run | Yrd Mat Mat Mat Turns Passed 1671 | 66 404 978 223 Spaces Moved 595 | 40 202 210 143 Core 357 | 6 4 210 137 Treads 194 | 34 160 . . Legs 44 | . 38 . 6 Wheels . | . . . . Hover . | . . . . Flight . | . . . . Fastest Speed 50 | 50 120 50 50 Average Speed 241 | 143 154 432 110 Slowest Speed 500 | 160 200 500 200 Overloaded Moves . | . . . . Propulsion Burnouts . | . . . . Robots Hopped . | . . . . Cave-ins Triggered . | . . . . Exploration Rate (%) 19 | 4 45 23 7 Regions Visited 3 Branch Regions . Pre-discovered Areas . | . . . . Known Exits Taken . | . . . . Unknown Exits Taken 3 | 1 1 1 . Scrap Searched . | . . . . Spaces Dug . | . . . . Terrain Destroyed 1 | . . . 1 Melee . | . . . . Projectile 1 | . . . 1 AOE . | . . . . Terrain Rammed . | . . . . Walls Destroyed . | . . . . Machines Disabled . | . . . . Actions | -11 -10 -9 -8 --------- Run | Yrd Mat Mat Mat Total 736 | 49 259 245 183 Wait . | . . . . Move 592 | 39 201 209 143 Hop . | . . . . Pick Up 28 | 5 8 7 8 Fast Attach . | . . . . Attach 28 | 5 7 7 9 Detach 1 | . . 1 . Swap 1 | . . . 1 Drop 7 | . 5 . 2 Fire 78 | . 38 20 20 Melee . | . . . . Ram 1 | . . 1 . Kick . | . . . . Crush . | . . . . Escape Stasis . | . . . . Rewire . | . . . . Trap . | . . . . Miscellaneous . | . . . . Route ------- -11/Scrapyard -10/Materials -9/Materials -8/Materials History --------- Turn | Location | Event 6 | -11/Scrapyard | Discovered new exit (range 15) 67 | -11/Scrapyard | Entered Materials 301 | -10/Materials | Build established: Mutant 445 | -10/Materials | Discovered new exit (range 15) 471 | -10/Materials | Entered another Materials area 471 | -9/Materials | Evolved 2 slots: Utility x2 1351 | -9/Materials | Discovered new exit (range 15) 1431 | -9/Materials | Core integrity fell below 50% 1447 | -9/Materials | Core integrity fell below 20% 1449 | -9/Materials | Entered another Materials area 1449 | -8/Materials | Evolved 2 slots: Propulsion x1, Utility x1 1480 | -8/Materials | Lost 7 parts (1p4u2w) 1663 | -8/Materials | Lost 5 parts (1p2n2w) 1672 | -8/Materials | Self-destructed Last Messages --------------- 01629_ Overheating: Energy bleed (-24). 01629_ Broken Hvy. Laser destroyed. 01631_ M-13 Machinist fits Backup Plating I on G-47 Trooper. 01631_ Broken Hvy. Particle Cannon destroyed. 01632_ G-47 Trooper heat damages core (-9). 01632_ Broken Aluminum Leg destroyed. 01633_ Overheating: Broken Aluminum Leg damaged (-19). 01633_ G-47 Trooper heat damages core (-6). 01633_ M-13 Machinist repairs G-47 Trooper. 01633_ G-47 Trooper overheating. 01635_ M-13 Machinist repairs Aluminum Leg. 01637_ Acquired Particle Charger. 01639_ Overheating: Energy bleed (-9). 01642_ G-47 Trooper heat short circuits Aluminum Leg. 01664_ Broken Aluminum Leg destroyed. 01664_ Critical hit (Burn: +37). 01671_ Acquired 49 matter. Map ----- +----------------------------------------------------+ | ????# """"" #?????????????????????????????????? | | ????# """"" #?????????????????????????????????? | | ????# """ #?????????????????????????????????? | | ????# #?????????????????????????????????? | | ????# #?????????????????????????????????? | | ????# #?????????????????????????????????? | | ????# #?????#######?????????????????????? | | ????#####+########## #?????????????????????? | | ?????# #?????????????????????? | | ?????# #?????????????????????? | | ?????# #?????????????????????? | | ?????####+##########g #?????????????????????? | | ?????# ######g ########???????????????? | | ?????# # # # """ #???????????????? | | ?????# """ """ # # # """ #???????????????? | | ?????# """ """ # + + """ #???????????????? | | ?????# """ """ # # # #???????????????? | | ?????# # # # #???????????????? | | ?????# #! #Y #? #???????????????? | | ?????# ! # # #?######???????????????? | | ?????########### #r #??????????????????????? | | ???????????????# # #??????????????????????? | | ???????????????###### #??????????????????????? | | ????????????????????# #??????????????????????? | | ????????????????????# #??????????????????????? | | ????????????????????# @#??????????????????????? | | ????????????????????# % #??????????????????????? | | ????????????????????# % #??????????????????????? | | ????????????????????# %#??????????????????????? | | ????????????????????# w #??????????????????????? | | ????????????????????#t #??????????????????????? | | ????????????????????+ #??????????????????????? | | ????????????????????# #??????????????????????? | | ????????????????????## ##??????????????????????? | | ????????????????????##m#???????????????????????? | | ?????????????????????# #???????????????????????? | | ?????????????????????# #???????????????????????? | | ?????????????????????# #???????????????????????? | | ?????????????????????? #???????????????????????? | | ?????????????????????? ????????????????????????? | | ?????????????????????? ????????????????????????? | | ?????????????????????? ????????????????????????? | | ???????????????????????????????????????????????? | | ???????????????????????????????????????????????? | | ???????????????????????????????????????????????? | | ???????????????????????????????????????????????? | | ???????????????????????????????????????????????? | | ???????????????????????????????????????????????? | | ???????????????????????????????????????????????? | | ???????????????????????????????????????????????? | +----------------------------------------------------+ Best States ------------- Heat Dissipation 42 Energy Generation 14 Energy Capacity 265 Matter Stores 300 Matter Capacity 300 Sight Range 16 Robot Scan Range 14 Terrain Scan Density 10 Armor Coverage 150 Resistance: KI 20 Resistance: TH 20 Resistance: EX 20 Resistance: EM 35 Resistance: I 20 Resistance: S 20 Resistance: P 20 Evasion (%) 55 Recoil Reduction 2 Particle Charging 15 Offensive Hacking 10 Item Schematics ----------------- None Robot Schematics ------------------ None Fabricated ------------ Nothing Alien Tech Used ----------------- None Achievements -------------- None Challenges ------------ None Game ------ Seed 1 Manual? 1 Play Time 00:15:29 Cumulative 82.2 hours Start 2024.03.20 @ 01:27:15 End 2024.03.20 @ 09:54:57 Sessions 3 Manual Loads 0 Difficulty Adventurer Special Mode None Game No. 85 Rogue 81 Adventurer 4 Explorer 0 Win Type - Total 0 Types 0/0/0/0/0/0/0/0/0 Lore% 5 Gallery% 24 Achievement% 8 Wizard Run 0 Options --------- Layout 1 ASCII 0 Keyboard 0 Movement Mouse Keybinds 0 Fullscreen 1 Font 24/Smallcaps Map View 50x35 Zoom Use 0% Tactical HUD 1 Map Filters NONE Filters NONE Steam 1 RUN: 1a6e27bd-6290-4fae-8a77-01f8a52cdaf7